bitfinex-derivatives/quotes_SOLF0:USTF0_20260305
["timestamp","ask_amount","ask_price","bid_price","bid_amount"]
[1772737716163,3.84922904,89.113,89.07,10.102]
[1772737716569,3.84922904,89.113,89.07,17.47450563]
[1772737717162,3.84922904,89.113,89.07,7.37250563]
[1772737717364,3.84922904,89.13,89.08,3.54682887]
[1772737717573,3.84922904,89.129,89.08,3.54682887]
[1772737717766,10.097,89.118,89.08,3.54682887]
[1772737717970,3.84922904,89.129,89.08,3.54682887]
[1772737718170,3.84922904,89.129,89.072,13.92767676]
[1772737718475,3.84922904,89.129,89.073,3.82567676]
[1772737719173,3.84922904,89.129,89.08,3.54682887]
[1772737719373,10.096,89.125,89.08,3.54682887]
[1772737719874,13.94522904,89.125,89.08,3.54682887]
[1772737720672,3.84922904,89.124,89.08,3.54682887]
[1772737721066,3.54682887,89.11,89.06,3.54682887]
[1772737721370,3.84922904,89.109,89.061,3.82567676]
[1772737722274,3.84922904,89.109,89.05,3.54682887]
[1772737722664,13.94922904,89.096,89.05,3.54682887]
[1772737722865,3.84922904,89.095,89.05,3.54682887]
[1772737723272,10.101,89.085,89.04,3.54682887]
[1772737723864,10.101,89.085,89.04,7.37250563]
[1772737724075,10.101,89.085,89.05,3.54682887]
[1772737724478,10.101,89.085,89.041,10.106]
[1772737724675,10.101,89.085,89.041,13.93167676]
[1772737725574,10.1,89.095,89.046,3.82567676]
[1772737725774,3.84922904,89.111,89.051,17.46973618]
[1772737726076,10.098,89.105,89.065,10.103]
[1772737726475,3.84922904,89.111,89.053,3.82567676]
[1772737727672,10.098,89.11,89.063,10.103]
[1772737728072,3.84922904,89.132,89.098,10.099]
[1772737728373,3.84922904,89.132,89.085,3.82567676]
[1772737728374,3.84922904,89.159,89.085,3.82567676]
[1772737728772,3.84922904,89.159,89.087,10.1]
[1772737729175,3.84922904,89.141,89.087,10.1]
[1772737729577,10.095,89.139,89.093,10.1]
[1772737729771,3.84922904,89.138,89.093,10.1]
[1772737730381,3.84922904,89.153,89.096,3.82567676]
[1772737730773,10.093,89.152,89.098,10.099]
[1772737730973,3.84922904,89.151,89.098,10.099]
[1772737731276,3.84922904,89.151,89.096,3.82567676]
[1772737731478,3.84922904,89.151,89.104,10.098]
[1772737732079,3.84922904,89.148,89.096,3.82567676]
[1772737732483,3.84922904,89.148,89.072,3.82567676]
[1772737733484,3.84922904,89.145,89.087,3.82567676]
[1772737733784,3.84922904,89.145,89.071,3.82567676]
[1772737733984,3.84922904,89.121,89.071,3.82567676]
[1772737734581,3.84922904,89.121,89.051,3.82567676]
[1772737735177,3.84922904,89.117,89.051,3.82567676]
[1772737735879,3.84922904,89.134,89.078,3.82567676]
[1772737736384,10.097,89.117,89.064,10.103]
[1772737736778,3.84922904,89.116,89.054,3.82567676]
[1772737736982,10.098,89.109,89.057,13.92967676]
[1772737737285,13.94722904,89.109,89.057,13.92967676]
[1772737737482,10.098,89.106,89.057,13.92967676]
[1772737739572,10.099,89.098,89.057,3.82567676]
[1772737739775,3.84922904,89.097,89.044,3.82567676]
[1772737739982,3.84922904,89.097,89.037,3.82567676]
[1772737740175,10.102,89.078,89.037,3.82567676]
[1772737740774,10.102,89.071,89.024,13.64405942]
[1772737740985,3.7870811,89.07,89.022,3.80050033]
[1772737741486,10.101,89.079,89.024,3.80050033]
[1772737741685,3.7870811,89.084,89.02,13.64405942]
[1772737741878,3.7870811,89.084,89.015,13.64405942]
[1772737742180,3.7870811,89.084,89.014,13.64405942]
[1772737742373,3.7870811,89.084,89.009,3.80050033]
[1772737742374,3.7870811,89.084,89.015,13.64405942]
[1772737742775,20.195,89.115,89.009,3.80050033]
[1772737742776,3.7870811,89.064,89.009,3.80050033]
[1772737743681,3.7870811,89.058,89.009,3.80050033]
[1772737745386,10.104,89.057,89.009,3.80050033]
[1772737745988,3.7870811,89.056,89.009,3.80050033]
[1772737746287,10.104,89.055,89.009,3.80050033]
[1772737746988,3.7870811,89.056,89.01,3.80050033]
[1772737747187,10.103,89.065,89.01,3.80050033]
[1772737748388,10.103,89.065,89.012,3.80050033]
[1772737748780,3.7870811,89.071,89.012,3.80050033]
[1772737749386,10.103,89.068,89.012,3.80050033]
[1772737750188,10.101,89.08,89.023,3.80050033]
[1772737750489,3.7870811,89.119,89.041,3.80050033]
[1772737750688,9.50112812,89.14,89.057,3.80050033]
[1772737750689,3.7870811,89.115,89.057,3.80050033]
[1772737751288,3.7870811,89.108,89.057,3.80050033]
[1772737752393,3.7870811,89.105,89.041,3.80050033]
[1772737753389,3.7870811,89.126,89.065,3.80050033]
[1772737753791,3.7870811,89.126,89.04,9.50112812]
[1772737753792,3.7870811,89.126,89.049,3.80050033]
[1772737754291,3.7870811,89.111,89.049,3.80050033]
[1772737755185,3.7870811,89.155,89.051,3.80050033]
[1772737755391,3.7870811,89.117,89.05,9.50112812]
[1772737755594,3.7870811,89.117,89.045,3.80050033]
[1772737756592,13.8860811,89.101,89.053,10.104]
[1772737756791,3.7870811,89.1,89.053,10.104]
[1772737757193,10.099,89.099,89.045,13.90550033]
[1772737757794,3.7870811,89.098,89.045,13.90550033]
[1772737758194,10.099,89.097,89.048,10.105]
[1772737758890,3.7870811,89.098,89.046,3.80050033]
[1772737760296,3.7870811,89.098,89.031,3.80050033]
[1772737761093,3.7870811,89.098,89.04,3.80050033]
[1772737762090,3.7870811,89.098,89.041,3.80050033]
[1772737763288,3.7870811,89.096,89.041,3.80050033]
[1772737763991,3.7870811,89.096,89.053,10.104]
[1772737764193,3.7870811,89.138,89.071,3.80050033]
[1772737765295,10.096,89.126,89.071,3.80050033]
[1772737766398,10.096,89.126,89.074,3.80050033]
[1772737767391,10.096,89.126,89.078,10.101]
[1772737767593,3.60889927,89.132,89.079,3.80050033]
[1772737768100,3.60889927,89.132,89.08,10.101]
[1772737768296,3.60889927,89.128,89.079,3.80050033]
[1772737768496,3.60889927,89.128,89.09,3.5456919]
[1772737769491,3.60889927,89.125,89.09,3.5456919]
[1772737769701,3.60889927,89.125,89.07,3.5456919]
[1772737770899,3.7740301,89.119,89.07,7.21500025]
[1772737771403,10.098,89.111,89.07,7.21500025]
[1772737771597,3.7740301,89.119,89.07,7.21500025]
[1772737771796,8.8743044,89.159,89.06,3.5456919]
[1772737771797,3.7740301,89.109,89.06,3.5456919]
[1772737771996,10.099,89.099,89.06,3.5456919]
[1772737772298,10.099,89.099,89.017,20.59650159]
[1772737772299,3.7740301,89.099,89.04,3.5456919]
[1772737772894,10.101,89.079,89.037,3.66930835]
[1772737773101,10.101,89.079,89.04,3.5456919]
[1772737773597,3.7740301,89.086,89.04,3.5456919]
[1772737774997,3.7740301,89.086,89.037,3.66930835]
[1772737774998,3.7740301,89.077,89.037,3.66930835]
[1772737775501,10.103,89.068,89.03,3.5456919]
[1772737776303,10.103,89.063,89.022,3.66930835]
[1772737776502,3.7740301,89.059,89.01,3.5456919]
[1772737777005,3.7740301,89.045,89.0,3.5456919]
[1772737778398,10.105,89.044,89.0,3.5456919]
[1772737778797,10.105,89.044,88.955,20.59650159]
[1772737778798,3.7740301,89.062,89.01,4.95372762]
[1772737779002,3.7740301,89.062,89.02,3.5456919]
[1772737780507,3.7740301,89.062,89.01,11.51703572]
[1772737780711,3.7740301,89.062,89.01,1.40803572]
[1772737781915,3.7740301,89.062,89.015,1.43133965]
[1772737785617,13.8770301,89.062,89.015,1.43133965]
[1772737785921,3.7740301,89.061,89.015,1.43133965]
[1772737787415,13.8780301,89.059,89.015,1.43133965]
[1772737787619,3.7740301,89.058,89.015,1.43133965]
[1772737788113,10.104,89.055,89.015,1.43133965]
[1772737788311,3.7740301,89.058,88.994,10.111]
[1772737788312,3.7740301,89.058,88.995,1.53837327]
[1772737789417,10.105,89.045,88.997,10.111]
[1772737789615,3.7740301,89.044,88.997,10.111]
[1772737789822,3.7740301,89.044,88.998,1.54456108]
[1772737790022,10.104,89.054,89.0,1.54456108]
[1772737791525,10.104,89.054,89.004,1.54433709]
[1772737792423,3.7740301,89.06,89.005,10.11]
[1772737792622,3.7740301,89.06,88.98,9.51215459]
[1772737792623,3.7740301,89.06,89.006,1.54433709]
[1772737793026,3.7740301,89.056,89.006,1.54433709]
[1772737793522,3.7740301,89.056,89.009,10.109]
[1772737794427,3.7740301,89.069,89.009,1.54169765]
[1772737795528,3.7740301,89.067,89.02,10.108]
[1772737797430,3.7740301,89.067,89.028,10.107]
[1772737797626,3.7740301,89.113,89.028,10.107]
[1772737797830,11.24,89.114,88.99,9.51302294]
[1772737797831,3.7740301,89.111,89.054,10.104]
[1772737798931,3.7740301,89.109,89.045,1.53574986]
[1772737799828,3.7740301,89.109,89.07,10.102]
[1772737800130,3.7740301,89.109,89.06,1.62642426]
[1772737800332,3.7740301,89.109,89.063,1.62204826]
[1772737801528,3.91049462,89.129,89.065,1.67784058]
[1772737802635,3.91049462,89.115,89.07,3.54732744]
[1772737802832,3.91049462,89.115,89.065,1.67784058]
[1772737802833,3.91049462,89.109,89.065,1.67784058]
[1772737803331,3.91049462,89.109,89.06,3.54732744]
[1772737804026,3.54732744,89.11,89.06,3.54732744]
[1772737804027,3.91049462,89.105,89.06,3.54732744]
[1772737804329,3.91049462,89.099,89.051,1.67123854]
[1772737804724,10.1,89.089,89.051,1.67123854]
[1772737805123,3.91049462,89.089,89.04,3.54732744]
[1772737805429,10.101,89.082,89.04,3.54732744]
[1772737806131,10.102,89.073,89.04,3.54732744]
[1772737806626,3.91049462,89.079,89.03,3.54732744]
[1772737806827,3.91049462,89.069,89.02,5.24568846]
[1772737807027,3.91049462,89.069,89.021,1.67144679]
[1772737808432,10.103,89.066,89.021,1.67144679]
[1772737809931,10.105,89.05,89.021,1.67144679]
[1772737810233,10.105,89.05,89.01,3.54732744]
[1772737810429,3.91049462,89.055,89.01,3.54732744]
[1772737810735,10.104,89.054,89.01,3.54732744]
[1772737811336,3.91049462,89.019,88.97,3.54732744]
[1772737811728,3.91049462,89.019,88.971,10.114]
[1772737811934,3.91049462,89.019,88.972,1.61521273]
[1772737812130,3.54732744,89.03,88.98,3.54732744]
[1772737812334,10.106,89.038,88.99,3.54732744]
[1772737812830,14.01649462,89.038,88.99,3.54732744]
[1772737813234,3.91049462,89.037,88.99,3.54732744]
[1772737813839,3.91049462,89.029,88.981,1.61521273]
[1772737814039,3.54732744,89.02,88.981,1.61521273]
[1772737814236,3.91049462,89.029,88.981,1.61521273]
[1772737815243,3.91049462,89.039,88.99,4.93223857]
[1772737815436,3.91049462,89.056,89.01,3.54732744]
[1772737816233,3.91049462,89.056,89.001,1.38491113]
[1772737816234,3.91049462,89.049,89.0,3.54732744]
[1772737817042,3.91049462,89.049,88.957,20.231]
[1772737817043,3.91049462,89.049,89.01,3.54732744]
[1772737818139,3.91049462,89.064,89.02,3.54732744]
[1772737819441,14.01349462,89.062,89.02,3.54732744]
[1772737820641,3.91049462,89.061,89.02,3.54732744]
[1772737820845,3.91049462,89.057,89.01,3.54732744]
[1772737822539,3.91049462,89.051,89.01,3.54732744]
[1772737823442,3.91049462,89.048,89.0,3.54732744]
[1772737825246,10.105,89.044,89.0,3.54732744]
[1772737825846,10.105,89.044,88.956,20.59650159]
[1772737825847,3.91049462,89.048,88.972,1.13372458]
[1772737826051,3.91049462,89.039,88.98,3.54732744]
[1772737826343,8.92231641,89.064,88.955,33.87505942]
[1772737826548,3.91049462,89.067,89.011,1.13372458]
[1772737826745,3.91049462,89.067,89.02,3.54732744]
[1772737827250,10.105,89.051,89.02,3.54732744]
[1772737827450,10.105,89.051,89.011,1.13372458]
[1772737828047,10.105,89.045,89.01,3.54732744]
[1772737828252,3.92541387,89.044,89.0,3.54732744]
[1772737828748,3.92541387,89.036,88.99,3.54732744]
[1772737830346,10.107,89.032,88.99,3.54732744]
[1772737832450,3.89401312,89.023,88.982,1.1880135]
[1772737833058,14.00001312,89.036,88.99,3.54732744]
[1772737833247,3.89401312,89.035,88.99,3.54732744]
[1772737834457,10.107,89.032,88.99,3.54732744]
[1772737835959,3.89401312,89.026,88.97,3.54732744]
[1772737836256,3.89401312,89.026,88.97,4.67584097]
[1772737836455,3.89401312,89.026,88.98,3.54732744]
[1772737836760,10.108,89.02,88.98,3.54732744]
[1772737840060,14.00201312,89.02,88.98,3.54732744]
[1772737840556,3.89401312,89.014,88.97,3.54732744]
[1772737841162,3.89401312,89.014,88.971,1.10301828]
[1772737841362,10.109,89.012,88.971,1.10301828]
[1772737842657,10.11,89.005,88.971,1.10301828]
[1772737844365,3.89401312,88.999,88.97,3.54732744]
[1772737844562,10.11,89.0,88.971,1.1007435]
[1772737844970,10.11,89.007,88.971,1.1007435]
[1772737846270,3.89401312,89.016,88.971,1.1007435]
[1772737849072,3.89401312,89.046,89.0,3.54732744]
[1772737849372,3.89401312,89.046,89.01,3.54732744]
[1772737849565,3.89401312,89.046,89.0,3.54732744]
[1772737850376,3.89401312,89.046,89.002,10.11]
[1772737851065,3.89401312,89.044,88.991,10.111]
[1772737851270,13.96476975,89.095,88.991,10.111]
[1772737851271,3.89401312,89.039,88.991,10.111]
[1772737852076,3.89401312,89.029,88.984,10.112]
[1772737852374,3.89401312,89.029,88.98,3.54732744]
[1772737854476,3.89401312,89.027,88.98,3.54732744]
[1772737856078,10.108,89.02,88.98,3.54732744]
[1772737856578,10.108,89.018,88.98,3.55424114]
[1772737858079,10.109,89.012,88.98,3.55424114]
[1772737861374,3.89401312,89.019,88.99,3.55424114]
[1772737862775,3.86236636,89.032,88.99,3.8367788]
[1772737862975,3.86236636,89.032,88.925,157.411]
[1772737862976,3.86236636,89.059,89.01,3.55424114]
[1772737863177,20.83317786,89.109,88.991,0.28253766]
[1772737863178,3.86236636,89.049,89.0,3.55424114]
[1772737863381,3.86236636,89.043,88.992,10.111]
[1772737863774,3.86236636,89.043,88.999,10.11]
[1772737863975,3.86236636,89.043,89.0,3.55424114]
[1772737864383,3.86236636,89.043,88.953,27.36832102]
[1772737864384,13.9989009,89.1,89.031,0.28253766]
[1772737864576,3.86236636,89.099,89.06,3.55424114]
[1772737864783,3.83449885,89.089,89.04,3.55424114]
[1772737865577,3.83449885,89.088,89.04,3.55424114]
[1772737865987,3.83449885,89.088,89.028,0.33827269]
[1772737865988,3.83449885,89.088,89.05,3.55424114]
[1772737867489,3.83449885,89.088,89.043,10.105]
[1772737868482,3.83449885,89.088,89.03,3.55424114]
[1772737868689,3.80907303,89.079,89.021,0.38951961]
[1772737869486,3.80887539,89.078,89.026,10.107]
[1772737870087,3.80887539,89.078,89.03,3.55424114]
[1772737870386,3.80887539,89.078,89.04,3.55424114]
[1772737872493,3.81150682,89.069,89.02,3.55424114]
[1772737873290,3.81150682,89.069,89.03,3.55424114]
[1772737874391,3.81154491,89.059,89.002,0.38418057]
[1772737874591,3.81154491,89.049,89.002,0.38418057]
[1772737875392,13.91654491,89.049,89.002,0.38418057]
[1772737876187,13.91654491,89.049,89.002,10.49418057]
[1772737876395,13.91654491,89.049,89.01,3.55424114]
[1772737876796,3.81154491,89.049,89.01,3.55424114]
[1772737878393,13.91654491,89.049,89.01,3.55424114]
[1772737878595,3.81350567,89.048,88.991,0.38025904]
[1772737878796,3.81350567,89.048,89.0,3.55424114]
[1772737878999,3.81350567,89.048,89.01,3.55424114]
[1772737879297,3.81350567,89.048,88.99,3.55424114]
[1772737879499,3.8138659,89.039,88.99,3.55424114]
[1772737879994,3.8138659,89.039,88.99,13.66524114]
[1772737880301,3.8138659,89.039,89.0,3.55424114]
[1772737882601,3.8138659,89.039,89.002,10.11]
[1772737883093,3.8138659,89.039,89.0,3.55424114]
[1772737883094,3.81413367,89.055,89.001,0.37900304]
[1772737883299,3.81413367,89.055,89.01,3.93324418]
[1772737884194,3.81413367,89.069,89.03,3.55424114]
[1772737884395,3.81413367,89.085,89.03,0.37900304]
[1772737884601,3.81413367,89.102,89.06,3.55424114]
[1772737886202,3.81413367,89.102,89.054,10.104]
[1772737886497,3.81673333,89.099,89.05,3.55424114]
[1772737886698,3.81673333,89.099,89.007,13.64405942]
[1772737886699,3.83755094,89.079,89.03,3.55424114]
[1772737887900,3.83755094,89.079,89.041,10.106]
[1772737888295,3.83755094,89.079,89.016,0.3321685]
[1772737888500,3.83755094,89.079,89.03,3.55424114]
[1772737888696,3.83714358,89.069,89.023,10.108]
[1772737889297,3.83714358,89.085,89.04,3.55424114]
[1772737890295,3.83714358,89.085,88.996,20.222]
[1772737890296,3.83714358,89.079,89.03,3.55424114]
[1772737890500,3.83714358,89.069,89.02,3.55424114]
[1772737891696,3.83714358,89.069,89.03,3.55424114]
[1772737892399,3.83741434,89.068,89.02,3.55424114]
[1772737892606,3.83741434,89.068,89.015,0.32783977]
[1772737893104,3.83343682,89.065,89.015,0.32783977]
[1772737893305,3.83343682,89.065,89.02,3.55424114]
[1772737893506,3.83343682,89.065,89.03,3.55424114]
[1772737894004,3.83343682,89.065,89.02,3.55424114]
[1772737894203,3.83343682,89.065,89.01,3.55424114]
[1772737894499,3.83343682,89.059,89.01,3.55424114]
[1772737895003,3.83343682,89.059,89.02,3.55424114]
[1772737897908,3.83343682,89.059,89.01,3.55424114]
[1772737898706,3.83612936,89.057,89.01,3.55424114]
[1772737900410,10.104,89.056,89.01,3.55424114]
[1772737900611,3.83612936,89.055,89.01,3.55424114]
[1772737901108,10.104,89.054,89.01,3.55424114]
[1772737901410,3.82897737,89.053,89.01,3.55424114]
[1772737901708,3.82897737,89.053,89.002,0.33525328]
[1772737901709,3.82897737,89.044,89.002,0.33525328]
[1772737902308,3.82897737,89.044,89.0,3.55424114]
[1772737902608,3.82897737,89.033,88.99,3.55424114]
[1772737903207,3.82897737,89.033,88.991,10.111]
[1772737903606,10.107,89.029,88.99,3.55424114]
[1772737905814,3.82897737,89.033,88.991,10.111]
[1772737906310,3.70304245,89.031,88.99,3.55424114]
[1772737907215,3.70918444,89.027,88.983,10.112]
[1772737908615,3.70918444,89.027,88.99,3.55424114]
[1772737909810,3.71369196,89.025,88.975,10.113]
[1772737910118,3.71369196,89.025,88.97,3.55424114]
[1772737910119,3.71369196,89.025,88.98,3.55424114]
[1772737910918,3.71369196,89.025,88.982,10.112]
[1772737912617,3.71369196,89.025,88.975,10.113]
[1772737913418,3.71369196,89.025,88.975,10.66580759]
[1772737914215,3.72465967,89.024,88.975,10.66580759]
[1772737914613,3.55424114,89.02,88.975,10.66580759]
[1772737915520,3.72466764,89.02,88.976,0.55279165]
[1772737916122,10.108,89.019,88.976,0.55279165]
[1772737916318,3.72466764,89.018,88.97,3.55424114]
[1772737916516,3.55424114,89.01,88.963,0.55279165]
[1772737916721,3.72466764,89.009,88.963,0.55279165]
[1772737917220,13.83366764,89.009,88.963,0.55279165]
[1772737918424,13.83366764,89.009,88.964,10.114]
[1772737918626,3.72466764,89.009,88.97,3.55547622]
[1772737918827,3.72466764,89.009,88.97,4.14903895]
[1772737920424,3.7042821,89.039,88.99,3.55547622]
[1772737920629,3.7042821,89.039,88.981,0.59580939]
[1772737920822,3.55547622,89.03,88.981,0.59580939]
[1772737921028,3.70590308,89.029,88.981,0.59580939]
[1772737921529,13.81390308,89.02,88.981,0.59580939]
[1772737921731,3.70590308,89.019,88.981,0.59580939]
[1772737922328,3.70590308,89.009,88.96,3.55547622]
[1772737922533,8.9707875,89.057,88.95,3.55547622]
[1772737922534,3.70590308,88.999,88.95,3.55547622]
[1772737922740,3.70590308,88.999,88.894,27.36832102]
[1772737922741,3.7102881,88.964,88.92,3.55547622]
[1772737922936,3.7102881,88.964,88.916,0.58379738]
[1772737923233,3.7102881,88.964,88.92,3.55547622]
[1772737923434,3.7102881,88.964,88.921,0.58379738]
[1772737924139,13.8232881,88.978,88.94,3.55547622]
[1772737924440,3.7102881,88.978,88.94,3.55547622]
[1772737925338,3.7102881,88.978,88.93,3.55547622]
[1772737926137,3.75682119,88.969,88.923,10.119]
[1772737926733,13.87060577,88.966,88.923,10.119]
[1772737928836,3.77110942,88.965,88.923,10.119]
[1772737929439,3.77110942,88.965,88.931,10.118]
[1772737929640,10.113,88.976,88.932,0.46215474]
[1772737930144,3.77110942,88.983,88.942,0.46215474]
[1772737930844,3.77110942,88.983,88.944,10.117]
[1772737932543,3.77533065,88.969,88.928,0.45371229]
[1772737933945,3.77533065,88.969,88.93,3.55547622]
[1772737934240,3.77533065,88.969,88.93,13.67347622]
[1772737935738,3.55547622,88.95,88.908,0.18920185]
[1772737935936,3.55547622,88.95,88.91,3.55547622]
[1772737935937,3.90758587,88.95,88.91,3.55547622]
[1772737937546,3.90758587,88.95,88.917,10.12]
[1772737938442,3.90758587,88.95,88.91,13.67647622]
[1772737940646,3.90758587,88.95,88.871,20.25]
[1772737940647,3.91967802,88.949,88.9,3.55547622]
[1772737940950,3.9168612,88.929,88.871,0.17065119]
[1772737941348,3.9168612,88.927,88.879,10.124]
[1772737941647,3.9168612,88.927,88.871,0.17065119]
[1772737941849,3.9168612,88.924,88.87,3.72612741]
[1772737942042,3.9168612,88.924,88.88,3.55547622]
[1772737942444,14.0358612,88.924,88.88,3.55547622]
[1772737943145,3.93379573,88.916,88.87,0.17065119]
[1772737943346,3.93379573,88.916,88.87,3.72612741]
[1772737943551,3.93379573,88.916,88.88,3.55547622]
[1772737943950,3.93379573,88.916,88.87,3.72612741]
[1772737944653,3.93379573,88.916,88.872,10.125]
[1772737944854,3.93379573,88.916,88.87,3.72612741]
[1772737945152,10.12,88.915,88.87,3.72612741]
[1772737945347,4.0168361,88.914,88.86,3.55547622]
[1772737945547,4.0168361,88.909,88.86,3.55547622]
[1772737945756,10.122,88.9,88.86,3.55547622]
[1772737945951,4.0168361,88.909,88.86,3.55547622]
[1772737946954,10.122,88.901,88.86,3.55547622]
[1772737947748,4.0168361,88.909,88.865,10.126]
[1772737948454,4.05212687,88.923,88.88,3.55547622]
[1772737948648,4.05212687,88.923,88.89,3.55547622]
[1772737948849,10.118,88.937,88.9,3.55547622]
[1772737949652,4.05249034,88.929,88.89,3.55547622]
[1772737950052,4.05249034,88.929,88.837,20.258]
[1772737950053,4.05249034,88.929,88.87,3.55547622]
[1772737950354,4.05249034,88.916,88.87,3.55547622]
[1772737951553,4.05249034,88.916,88.88,3.55547622]
[1772737952155,20.226,88.98,88.89,3.55547622]
[1772737952351,4.05938803,88.939,88.89,3.55547622]
[1772737953054,4.05938803,88.939,88.9,3.55547622]
[1772737954055,4.05938803,88.939,88.89,3.55547622]
[1772737954259,4.05968367,88.937,88.89,3.55547622]
[1772737954460,4.05968367,88.937,88.88,3.55547622]
[1772737955054,8.99245139,88.979,88.821,456.595]
[1772737955055,4.07167035,88.927,88.87,3.55547622]
[1772737955661,3.55547622,88.93,88.88,3.55547622]
[1772737955662,4.07167035,88.924,88.88,3.55547622]
[1772737956553,4.07167035,88.924,88.874,10.125]
[1772737956753,4.07167035,88.924,88.88,3.55547622]
[1772737957160,4.07167035,88.924,88.881,10.124]
[1772737957658,4.07167035,88.924,88.89,3.55547622]
[1772737958453,4.0767161,88.919,88.87,3.55547622]
[1772737958657,4.0767161,88.919,88.838,20.258]
[1772737958959,10.121,88.909,88.87,3.55547622]
[1772737960060,10.121,88.909,88.88,3.55547622]
[1772737960456,10.12,88.916,88.88,3.55547622]
[1772737960655,4.06794853,88.938,88.89,3.55547622]
[1772737960860,4.06794853,88.938,88.9,3.55547622]
[1772737962058,4.06794853,88.938,88.89,3.55547622]
[1772737962656,4.03608051,88.93,88.89,3.55547622]
[1772737963361,4.03820632,88.929,88.89,3.55547622]
[1772737964959,4.03820632,88.929,88.89,13.67847622]
[1772737965458,4.03820632,88.929,88.88,3.55547622]
[1772737966266,4.03666642,88.927,88.882,10.124]
[1772737966861,14.15372148,88.925,88.881,10.124]
[1772737967465,10.119,88.922,88.881,10.124]
[1772737967865,10.119,88.922,88.89,3.55547622]
[1772737968266,4.03472148,88.924,88.89,3.55547622]
[1772737969067,10.118,88.936,88.9,3.55547622]
[1772737969268,4.03868255,88.953,88.91,3.55547622]
[1772737970868,4.03868255,88.953,88.92,3.55547622]
[1772737971069,4.03868255,88.953,88.91,3.55547622]
[1772737971372,4.03868255,88.953,88.884,20.248]
[1772737971574,4.03868255,88.953,88.921,10.119]
[1772737971769,4.04716224,88.979,88.92,3.55547622]
[1772737971965,4.04716224,88.975,88.93,3.55547622]
[1772737972169,4.04716224,88.975,88.94,3.55547622]
[1772737972671,4.04716224,88.975,88.95,3.55547622]
[1772737972870,4.06313559,88.998,88.95,3.55547622]
[1772737974172,4.06313559,88.996,88.95,3.55547622]
[1772737975265,10.111,88.995,88.95,3.55547622]
[1772737975471,4.06300698,89.009,88.96,3.55547622]
[1772737976477,1.95613315,89.023,88.909,20.242]
[1772737976478,4.06300698,88.997,88.911,13.65579824]
[1772737976772,4.06300698,88.997,88.94,3.55547622]
[1772737976967,4.07205816,88.982,88.95,3.55547622]
[1772737977476,4.07205816,88.982,88.94,3.55547622]
[1772737977670,10.113,88.98,88.94,3.55547622]
[1772737977978,4.07205816,88.979,88.94,3.55547622]
[1772737980377,10.113,88.977,88.94,3.55547622]
[1772737980576,1.95613315,89.023,88.89,62.0]
[1772737980577,4.07480521,88.999,88.95,3.55753873]
[1772737981478,10.112,88.985,88.95,3.55753873]
[1772737981973,4.10546093,88.987,88.96,3.55753873]
[1772737982181,4.10546093,89.009,88.96,3.55753873]
[1772737982680,4.10546093,88.994,88.95,3.55753873]
[1772737983079,4.10569895,88.992,88.95,3.55753873]
[1772737984379,10.111,88.991,88.95,3.55753873]
[1772737984579,4.10569895,88.99,88.95,3.55753873]
[1772737985876,4.10625962,89.004,88.96,3.55753873]
[1772737986083,4.10625962,89.018,88.98,3.55753873]
[1772737988384,14.23231549,89.021,88.98,3.55753873]
[1772737989078,10.107,89.03,88.982,10.112]
[1772737989481,14.34387173,89.03,88.982,10.112]
[1772737990185,10.107,89.027,88.98,3.55753873]
[1772737990379,4.23687173,89.019,88.97,3.55753873]
[1772737990682,1.95544617,89.058,88.981,10.112]
[1772737990683,4.23687173,89.018,88.981,10.112]
[1772737990883,4.23687173,89.018,88.91,20.55712824]
[1772737990884,4.25012878,89.056,89.01,3.55753873]
[1772737991086,4.25012878,89.069,88.952,13.65579824]
[1772737991287,1.95511659,89.088,88.894,179.78]
[1772737991288,1.95511659,89.088,88.991,157.295]
[1772737991584,1.95511659,89.088,88.955,472.075]
[1772737991585,4.25012878,89.103,89.08,0.00053873]
[1772737991785,4.25012878,89.103,89.07,3.55753873]
[1772737992183,4.25012878,89.127,89.09,3.55753873]
[1772737992379,4.25012878,89.124,89.09,3.55753873]
[1772737993079,1.95374454,89.138,89.057,10.104]
[1772737993080,4.03963247,89.12,89.08,3.55753873]
[1772737994486,4.03963247,89.118,89.06,9.49911228]
[1772737995085,4.01942694,89.139,89.08,9.49911228]
[1772737996383,4.01942694,89.139,89.087,10.1]
[1772737997388,3.95489433,89.158,89.101,0.09757513]
[1772737997788,5.9077782,89.178,89.101,0.09757513]
[1772737997992,3.95489433,89.177,89.12,9.59668741]
[1772737998589,3.95489433,89.177,89.122,10.096]
[1772737998796,3.95489433,89.177,89.122,10.19357513]
[1772737999185,3.95489433,89.177,89.123,0.07221571]
[1772737999391,3.95489433,89.177,89.128,0.07221571]